fUST/lending_fUST_20250729
["ID","MTS","AMOUNT","RATE_DAILY","PERIOD"]
[375834695,1753755053729,-472.39,0.00020547,2]
[375834697,1753755053741,-460.0,0.00020547,2]
[375834700,1753755053753,-578.18,0.00020547,2]
[375834702,1753755053764,-460.0,0.00020547,2]
[375834704,1753755053778,-1619.07,0.00020547,2]
[375834706,1753755053789,-460.0,0.00020547,2]
[375834708,1753755053802,-460.0,0.00020547,2]
[375834711,1753755053815,-5860.54,0.00020547,2]
[375834713,1753755053827,-505.03,0.00020547,2]
[375834715,1753755053839,-460.0,0.00020547,2]
[375834717,1753755053851,-460.0,0.00020547,2]
[375834719,1753755053863,-467.46191031,0.00020547,2]
[375834722,1753755053875,-501.06,0.00020547,2]
[375834724,1753755053886,-460.0,0.00020547,2]
[375834726,1753755053899,-460.0,0.00020547,2]
[375834728,1753755053911,-1446.29,0.00020547,2]
[375834730,1753755053922,-516.06,0.00020547,2]
[375834733,1753755053935,-1871.31,0.00020547,2]
[375834735,1753755053947,-460.0,0.00020547,2]
[375834737,1753755053959,-460.0,0.00020547,2]
[375834739,1753755053971,-1550.07,0.00020547,2]
[375834741,1753755053983,-551.74,0.00020547,2]
[375834744,1753755053995,-765.66,0.00020547,2]
[375834746,1753755054007,-460.0,0.00020547,2]
[375834748,1753755054019,-460.0,0.00020547,2]
[375834751,1753755054034,-460.0,0.00020547,2]
[375834753,1753755054046,-567.82,0.00020547,2]
[375834755,1753755054058,-440.85262255,0.00020547,2]
[375834757,1753755054070,-1615.99,0.00020547,2]
[375834759,1753755054083,-727.19,0.00020547,2]
[375834762,1753755054095,-460.0,0.00020547,2]
[375834764,1753755054108,-464.00308993,0.00020547,2]
[375834766,1753755054120,-460.0,0.00020547,2]
[375834768,1753755054132,-460.0,0.00020547,2]
[375834771,1753755054144,-160.0,0.00020555,2]
[375834773,1753755054161,-791.89605778,0.00020568,2]
[375834775,1753755054174,-173.784,0.00020593,2]
[375834777,1753755054187,-154.32137,0.00020603,2]
[375834779,1753755054199,-352.0,0.00020785,2]
[375834782,1753755054211,-984.79209584,0.00020795,2]
[375834784,1753755054224,-151.0,0.00020821,2]
[375834786,1753755054236,-997.54,0.00020821,2]
[375834788,1753755054248,-152.343391,0.00020821,2]
[375834790,1753755054259,-267.336701,0.00020821,2]
[375834792,1753755054271,-267.336701,0.00020821,2]
[375834795,1753755054286,-151.0,0.00020821,2]
[375834797,1753755054297,-460.0,0.00020821,2]
[375834799,1753755054309,-460.0,0.00020821,2]
[375834801,1753755054321,-460.0,0.00020821,2]
[375834803,1753755054334,-460.0,0.00020821,2]
[375834805,1753755054346,-2061.92,0.00020821,2]
[375834808,1753755054358,-479.76363087,0.00020821,2]
[375834810,1753755054370,-460.0,0.00020821,2]
[375834812,1753755054382,-460.0,0.00020821,2]
[375834814,1753755054394,-460.0,0.00020821,2]
[375834817,1753755054407,-1326.66,0.00020821,2]
[375834819,1753755054419,-460.0,0.00020821,2]
[375834821,1753755054431,-460.0,0.00020821,2]
[375834823,1753755054444,-460.0,0.00020821,2]
[375834826,1753755054455,-740.33,0.00020821,2]
[375834828,1753755054467,-460.89,0.00020821,2]
[375834830,1753755054480,-460.0,0.00020821,2]
[375834832,1753755054495,-478.91,0.00020821,2]
[375834835,1753755054507,-460.0,0.00020821,2]
[375834837,1753755054519,-324.60871888,0.00020821,2]
[375834839,1753755054532,-460.0,0.00020821,2]
[375834841,1753755054544,-460.0,0.00020821,2]
[375834864,1753755054767,-664.25,0.00020821,2]
[375834867,1753755054782,-471.92498589,0.00020821,2]
[375834869,1753755054792,-460.0,0.00020821,2]
[375834871,1753755054802,-469.98702605,0.00020821,2]
[375834872,1753755054811,-460.0,0.00020821,2]
[375834874,1753755054821,-466.47247173,0.00020821,2]
[375834876,1753755054832,-432.16421492,0.00020821,2]
[375834878,1753755054842,-460.0,0.00020821,2]
[375834880,1753755054851,-1311.07,0.00020821,2]
[375834882,1753755054860,-489.84,0.00020821,2]
[375834884,1753755054870,-460.0,0.00020821,2]
[375834886,1753755054879,-460.0,0.00020821,2]
[375834888,1753755054889,-460.0,0.00020821,2]
[375834890,1753755054899,-460.0,0.00020821,2]
[375834892,1753755054908,-460.0,0.00020821,2]
[375834894,1753755054917,-566.46456251,0.00020821,2]
[375834896,1753755054927,-4057.2,0.00020821,2]
[375834898,1753755054937,-468.28582491,0.00020821,2]
[375834900,1753755054946,-460.0,0.00020821,2]
[375834902,1753755054955,-460.0,0.00020821,2]
[375834904,1753755054965,-460.0,0.00020821,2]
[375834906,1753755054974,-621.58,0.00020821,2]
[375834907,1753755054984,-460.0,0.00020821,2]
[375834909,1753755054994,-438.43369676,0.00020821,2]
[375834911,1753755055004,-460.0,0.00020821,2]
[375834913,1753755055013,-460.0,0.00020821,2]
[375834915,1753755055023,-460.0,0.00020821,2]
[375834917,1753755055033,-460.0,0.00020821,2]
[375834919,1753755055043,-460.0,0.00020821,2]
[375834921,1753755055052,-471.90905699,0.00020821,2]
[375834923,1753755055062,-151.0,0.00020821,2]
[375834925,1753755055071,-694.99,0.00020821,2]
[375834927,1753755055082,-267.87760546,0.00020821,2]
[375834929,1753755055091,-501.7,0.00020821,2]
[375834931,1753755055101,-460.0,0.00020821,2]
[375834933,1753755055112,-460.0,0.00020821,2]
[375834935,1753755055121,-672.37,0.00020821,2]
[375834937,1753755055130,-460.0,0.00020821,2]
[375834939,1753755055140,-460.0,0.00020821,2]
[375834941,1753755055149,-460.0,0.00020821,2]
[375834942,1753755055159,-203.05501029,0.00020821,2]
[375834944,1753755055168,-460.0,0.00020821,2]
[375834946,1753755055178,-460.0,0.00020821,2]
[375834948,1753755055188,-460.0,0.00020821,2]
[375834950,1753755055197,-460.0,0.00020821,2]
[375834952,1753755055207,-460.0,0.00020821,2]
[375834954,1753755055216,-519.75,0.00020821,2]
[375834956,1753755055225,-555.00328478,0.00020821,2]
[375834958,1753755055234,-460.0,0.00020821,2]
[375834960,1753755055244,-460.0,0.00020821,2]
[375834962,1753755055254,-2280.38,0.00020821,2]
[375834964,1753755055264,-503.62,0.00020821,2]
[375834966,1753755055273,-1575.63,0.00020821,2]
[375834968,1753755055283,-460.0,0.00020821,2]
[375834970,1753755055292,-460.0,0.00020821,2]
[375834972,1753755055302,-460.0,0.00020821,2]
[375834974,1753755055312,-460.0,0.00020821,2]
[375834976,1753755055321,-460.0,0.00020821,2]
[375834978,1753755055332,-460.0,0.00020821,2]
[375834980,1753755055341,-770.62,0.00020821,2]
[375834982,1753755055350,-723.15,0.00020821,2]
[375834984,1753755055360,-460.0,0.00020821,2]
[375834986,1753755055370,-471.18258806,0.00020821,2]
[375834988,1753755055379,-460.0,0.00020821,2]
[375834990,1753755055389,-2380.13,0.00020821,2]
[375834992,1753755055398,-472.39,0.00020821,2]
[375834994,1753755055408,-460.0,0.00020821,2]
[375834996,1753755055417,-578.18,0.00020821,2]
[375834998,1753755055427,-460.0,0.00020821,2]
[375835000,1753755055436,-1619.07,0.00020821,2]
[375835001,1753755055446,-372.42501981,0.00020821,2]
[375835004,1753755055456,-504.35843271,0.00020821,2]
[375835006,1753755055465,-5860.54,0.00020821,2]
[375835008,1753755055475,-505.03,0.00020821,2]
[375835010,1753755055484,-460.0,0.00020821,2]
[375835012,1753755055494,-460.0,0.00020821,2]
[375835014,1753755055504,-501.06,0.00020821,2]
[375835016,1753755055513,-460.0,0.00020821,2]
[375835018,1753755055523,-460.0,0.00020821,2]
[375835020,1753755055533,-1446.29,0.00020821,2]
[375835022,1753755055543,-516.06,0.00020821,2]
[375835024,1753755055552,-151.535887,0.00020821,2]
[375835025,1753755055562,-1871.31,0.00020821,2]
[375835027,1753755055571,-460.0,0.00020821,2]
[375835029,1753755055582,-151.0,0.00020821,2]
[375835031,1753755055591,-460.0,0.00020821,2]
[375835033,1753755055602,-151.0,0.00020821,2]
[375835035,1753755055612,-1550.07,0.00020821,2]
[375835038,1753755055622,-551.74,0.00020821,2]
[375835039,1753755055632,-765.66,0.00020821,2]
[375835041,1753755055645,-460.0,0.00020821,2]
[375835043,1753755055655,-460.0,0.00020821,2]
[375835045,1753755055664,-460.0,0.00020821,2]
[375835047,1753755055675,-567.82,0.00020821,2]
[375835049,1753755055685,-1615.99,0.00020821,2]
[375835051,1753755055695,-460.0,0.00020821,2]
[375835053,1753755055705,-727.19,0.00020821,2]
[375835055,1753755055715,-460.0,0.00020821,2]
[375835057,1753755055725,-1000.0,0.00021068,2]
[375835059,1753755055735,-506.95001152,0.00021068,2]
[375835060,1753755055744,-1000.0,0.00021068,2]
[375835061,1753755055753,-997.54,0.00021095,2]
[375835062,1753755055762,-460.0,0.00021095,2]
[375835063,1753755055772,-460.0,0.00021095,2]
[375835064,1753755055781,-460.0,0.00021095,2]
[375835065,1753755055791,-460.0,0.00021095,2]
[375835066,1753755055800,-2061.92,0.00021095,2]
[375835067,1753755055809,-460.0,0.00021095,2]
[375835068,1753755055819,-460.0,0.00021095,2]
[375835070,1753755055829,-460.0,0.00021095,2]
[375835072,1753755055838,-460.0,0.00021095,2]
[375835074,1753755055848,-1326.66,0.00021095,2]
[375835076,1753755055857,-460.0,0.00021095,2]
[375835078,1753755055867,-470.02848119,0.00021095,2]
[375835079,1753755055882,-740.33,0.00021095,2]
[375835081,1753755055892,-460.89,0.00021095,2]
[375835084,1753755055902,-460.0,0.00021095,2]
[375835086,1753755055912,-478.91,0.00021095,2]
[375835088,1753755055921,-460.0,0.00021095,2]
[375835090,1753755055931,-460.0,0.00021095,2]
[375835092,1753755055940,-460.0,0.00021095,2]
[375835094,1753755055949,-664.25,0.00021095,2]
[375835096,1753755055958,-475.07432688,0.00021095,2]
[375835098,1753755055969,-460.0,0.00021095,2]
[375835100,1753755055978,-151.0,0.00021095,2]
[375835102,1753755055988,-460.0,0.00021095,2]
[375835104,1753755055997,-1311.07,0.00021095,2]
[375835106,1753755056007,-489.84,0.00021095,2]
[375835108,1753755056016,-460.0,0.00021095,2]
[375835110,1753755056025,-460.0,0.00021095,2]
[375835112,1753755056035,-151.0,0.00021095,2]
[375835114,1753755056044,-151.0,0.00021095,2]
[375835116,1753755056054,-465.35367499,0.00021095,2]
[375835118,1753755056063,-176.5683931,0.00021095,2]
[375835119,1753755056072,-460.0,0.00021095,2]
[375835122,1753755056083,-4057.2,0.00021095,2]
[375835124,1753755056094,-460.0,0.00021095,2]
[375835126,1753755056103,-460.0,0.00021095,2]
[375835128,1753755056117,-460.0,0.00021095,2]
[375835130,1753755056126,-621.58,0.00021095,2]
[375835132,1753755056136,-460.0,0.00021095,2]
[375835134,1753755056145,-460.0,0.00021095,2]
[375835136,1753755056155,-446.66479869,0.00021095,2]
[375835138,1753755056165,-460.0,0.00021095,2]
[375835140,1753755056174,-460.0,0.00021095,2]
[375835142,1753755056186,-536.44884136,0.00021095,2]
[375835144,1753755056195,-694.99,0.00021095,2]
[375835146,1753755056205,-501.7,0.00021095,2]
[375835148,1753755056214,-469.23866829,0.00021095,2]
[375835150,1753755056224,-460.0,0.00021095,2]
[375835152,1753755056233,-672.37,0.00021095,2]
[375835154,1753755056243,-460.0,0.00021095,2]
[375835156,1753755056252,-460.0,0.00021095,2]
[375835158,1753755056261,-460.0,0.00021095,2]
[375835160,1753755056270,-460.0,0.00021095,2]
[375835162,1753755056279,-460.0,0.00021095,2]
[375835164,1753755056288,-478.4309536,0.00021095,2]
[375835165,1753755056298,-460.0,0.00021095,2]
[375835167,1753755056307,-460.0,0.00021095,2]
[375835169,1753755056317,-519.75,0.00021095,2]
[375835171,1753755056327,-460.0,0.00021095,2]
[375835173,1753755056337,-460.0,0.00021095,2]
[375835175,1753755056346,-2280.38,0.00021095,2]
[375835177,1753755056356,-503.62,0.00021095,2]
[375835179,1753755056365,-1575.63,0.00021095,2]
[375835181,1753755056375,-460.0,0.00021095,2]
[375835183,1753755056384,-460.0,0.00021095,2]
[375835185,1753755056394,-460.0,0.00021095,2]
[375835187,1753755056404,-460.0,0.00021095,2]
[375835189,1753755056413,-460.0,0.00021095,2]
[375835191,1753755056423,-460.0,0.00021095,2]
[375835193,1753755056432,-770.62,0.00021095,2]
[375835195,1753755056441,-151.0,0.00021095,2]
[375835197,1753755056451,-723.15,0.00021095,2]
[375835199,1753755056460,-460.0,0.00021095,2]
[375835201,1753755056470,-460.0,0.00021095,2]
[375835203,1753755056479,-2380.13,0.00021095,2]
[375835205,1753755056489,-472.39,0.00021095,2]
[375835207,1753755056498,-460.0,0.00021095,2]
[375835209,1753755056509,-578.18,0.00021095,2]
[375835211,1753755056518,-460.0,0.00021095,2]
[375835213,1753755056527,-1619.07,0.00021095,2]
[375835215,1753755056536,-5860.54,0.00021095,2]
[375835217,1753755056546,-505.03,0.00021095,2]
[375835219,1753755056555,-460.0,0.00021095,2]
[375835221,1753755056565,-501.06,0.00021095,2]
[375835223,1753755056575,-470.07396704,0.00021095,2]
[375835225,1753755056584,-460.0,0.00021095,2]
[375835227,1753755056594,-1446.29,0.00021095,2]
[375835229,1753755056603,-516.06,0.00021095,2]
[375835231,1753755056612,-1871.31,0.00021095,2]
[375835233,1753755056622,-460.0,0.00021095,2]
[375835235,1753755056633,-460.0,0.00021095,2]
[375835237,1753755056646,-1550.07,0.00021095,2]
[375835239,1753755056655,-551.74,0.00021095,2]
[375835241,1753755056665,-765.66,0.00021095,2]
[375835243,1753755056676,-460.0,0.00021095,2]
[375835245,1753755056686,-460.0,0.00021095,2]
[375835248,1753755056696,-460.0,0.00021095,2]
[375835250,1753755056705,-567.82,0.00021095,2]
[375835252,1753755056717,-1615.99,0.00021095,2]
[375835254,1753755056727,-233.58690594,0.00021095,2]
[375835256,1753755056737,-727.19,0.00021095,2]
[375835257,1753755056746,-568.25130921,0.00021095,2]
[375835260,1753755056756,-260.0,0.00021102,2]
[375835262,1753755056766,-200.0,0.00021254,15]
[375835263,1753755056777,-200.0,0.00021254,15]
[375835266,1753755056787,-200.0,0.00021254,15]
[375835268,1753755056797,-200.0,0.00021254,15]
[375835270,1753755056806,-320.0,0.00021254,15]
[375835272,1753755056816,-429.1,0.00021364,4]
[375835273,1753755056826,-997.54,0.00021369,2]
[375835276,1753755056835,-460.0,0.00021369,2]
[375835277,1753755056844,-460.0,0.00021369,2]
[375835280,1753755056854,-460.0,0.00021369,2]
[375835282,1753755056865,-460.0,0.00021369,2]
[375835284,1753755056874,-2061.92,0.00021369,2]
[375835286,1753755056883,-460.0,0.00021369,2]
[375835288,1753755056893,-460.0,0.00021369,2]
[375835290,1753755056903,-460.0,0.00021369,2]
[375835292,1753755056912,-460.0,0.00021369,2]
[375835294,1753755056922,-1326.66,0.00021369,2]
[375835296,1753755056931,-460.0,0.00021369,2]
[375835298,1753755056941,-740.33,0.00021369,2]
[375835300,1753755056951,-460.89,0.00021369,2]
[375835302,1753755056960,-211.94952527,0.00021369,2]
[375835317,1753755057107,-248.05047473,0.00021369,2]
[375835320,1753755057117,-478.91,0.00021369,2]
[375835322,1753755057128,-460.0,0.00021369,2]
[375835324,1753755057139,-460.0,0.00021369,2]
[375835326,1753755057150,-460.0,0.00021369,2]
[375835328,1753755057160,-664.25,0.00021369,2]
[375835330,1753755057171,-460.0,0.00021369,2]
[375835332,1753755057181,-460.0,0.00021369,2]
[375835334,1753755057191,-151.0,0.00021369,2]
[375835336,1753755057202,-1311.07,0.00021369,2]
[375835338,1753755057212,-489.84,0.00021369,2]
[375835340,1753755057223,-460.0,0.00021369,2]
[375835342,1753755057232,-460.0,0.00021369,2]
[375835344,1753755057243,-460.0,0.00021369,2]
[375835346,1753755057253,-4057.2,0.00021369,2]
[375835348,1753755057264,-151.0,0.00021369,2]
[375835350,1753755057274,-460.0,0.00021369,2]
[375835352,1753755057284,-152.095543,0.00021369,2]
[375835354,1753755057295,-460.0,0.00021369,2]
[375835356,1753755057305,-460.0,0.00021369,2]
[375835358,1753755057314,-621.58,0.00021369,2]
[375835360,1753755057325,-460.0,0.00021369,2]
[375835362,1753755057336,-460.0,0.00021369,2]
[375835364,1753755057346,-460.0,0.00021369,2]
[375835366,1753755057355,-460.0,0.00021369,2]
[375835368,1753755057365,-694.99,0.00021369,2]
[375835370,1753755057375,-501.7,0.00021369,2]
[375835372,1753755057385,-460.0,0.00021369,2]
[375835374,1753755057394,-672.37,0.00021369,2]
[375835376,1753755057403,-460.0,0.00021369,2]
[375835378,1753755057414,-460.0,0.00021369,2]
[375835380,1753755057423,-460.0,0.00021369,2]
[375835382,1753755057432,-460.0,0.00021369,2]
[375835384,1753755057442,-460.0,0.00021369,2]
[375835386,1753755057451,-460.0,0.00021369,2]
[375835388,1753755057461,-460.0,0.00021369,2]
[375835390,1753755057470,-519.75,0.00021369,2]
[375835392,1753755057480,-460.0,0.00021369,2]
[375835394,1753755057490,-460.0,0.00021369,2]
[375835396,1753755057499,-2280.38,0.00021369,2]
[375835398,1753755057509,-503.62,0.00021369,2]
[375835400,1753755057519,-1575.63,0.00021369,2]
[375835402,1753755057529,-460.0,0.00021369,2]
[375835404,1753755057540,-460.0,0.00021369,2]
[375835406,1753755057549,-460.0,0.00021369,2]
[375835408,1753755057559,-460.0,0.00021369,2]
[375835410,1753755057569,-460.0,0.00021369,2]
[375835412,1753755057580,-460.0,0.00021369,2]
[375835414,1753755057590,-770.62,0.00021369,2]
[375835416,1753755057600,-723.15,0.00021369,2]
[375835417,1753755057610,-467.90495523,0.00021369,2]
[375835419,1753755057620,-460.0,0.00021369,2]
[375835421,1753755057633,-2380.13,0.00021369,2]
[375835423,1753755057643,-472.39,0.00021369,2]
[375835425,1753755057653,-481.84716115,0.00021369,2]
[375835427,1753755057664,-578.18,0.00021369,2]
[375835429,1753755057674,-460.0,0.00021369,2]
[375835431,1753755057684,-1619.07,0.00021369,2]
[375835433,1753755057694,-5860.54,0.00021369,2]
[375835435,1753755057704,-505.03,0.00021369,2]
[375835437,1753755057714,-460.0,0.00021369,2]
[375835439,1753755057724,-501.06,0.00021369,2]
[375835441,1753755057734,-460.0,0.00021369,2]
[375835443,1753755057743,-1446.29,0.00021369,2]
[375835445,1753755057753,-516.06,0.00021369,2]
[375835447,1753755057763,-230.579603,0.00021369,2]
[375835449,1753755057772,-1871.31,0.00021369,2]
[375835451,1753755057782,-230.579603,0.00021369,2]
[375835453,1753755057792,-460.0,0.00021369,2]
[375835455,1753755057802,-460.0,0.00021369,2]
[375835457,1753755057812,-1550.07,0.00021369,2]
[375835459,1753755057822,-551.74,0.00021369,2]
[375835461,1753755057834,-765.66,0.00021369,2]
[375835463,1753755057843,-460.0,0.00021369,2]
[375835465,1753755057853,-460.0,0.00021369,2]
[375835467,1753755057863,-460.0,0.00021369,2]
[375835469,1753755057872,-567.82,0.00021369,2]
[375835471,1753755057882,-1615.99,0.00021369,2]
[375835473,1753755057892,-727.19,0.00021369,2]
[375835475,1753755057901,-304.85881936,0.000214,2]
[375835477,1753755057912,-984.79209584,0.000214,2]
[375835479,1753755057921,-153.76381461,0.00021407,2]
[375835481,1753755057931,-501.53150821,0.00021473,2]
[375835484,1753755057941,-268.67235079,0.000215,2]
[375835486,1753755057951,-580768.07590018,0.000215,2]
[375835488,1753755057961,-151.0,0.000215,2]
[375835490,1753755057970,-151.0,0.000215,2]
[375835492,1753755057980,-151.0,0.000215,2]
[375835514,1753755058185,-151.0,0.000215,2]
[375835517,1753755058201,-151.0,0.000215,2]
[375835519,1753755058211,-151.0,0.000215,2]
[375835521,1753755058221,-151.0,0.000215,2]
[375835523,1753755058231,-151.0,0.000215,2]
[375835525,1753755058240,-153.861058,0.000215,7]
[375835527,1753755058250,-151.0,0.000215,2]
[375835529,1753755058260,-151.0,0.000215,2]
[375835531,1753755058269,-151.0,0.000215,2]
[375835533,1753755058279,-151.0,0.000215,2]
[375835535,1753755058288,-246.71041,0.000215,2]
[375835537,1753755058299,-246.71041,0.000215,2]
[375835539,1753755058308,-151.0,0.000215,2]
[375835541,1753755058318,-152.639882,0.000215,2]
[375835543,1753755058328,-129216.04725332,0.000215,2]
[375835545,1753755058341,-43511.45312513,0.000215,2]
[375835623,1753755059104,-11138.53400971,0.00019067,2]
[375838024,1753755202413,461.749516,0.00018245,2]
[375838026,1753755446813,1793.80445552,0.00018177,2]
[375838027,1753755446836,8206.19554448,0.00018177,2]
[375838034,1753755587428,-154.29362718,0.00019078,2]
[375838035,1753755587451,-160.0,0.0001917,2]
[375838036,1753755587475,-536.11900982,0.00019173,2]
[375838037,1753755587501,-333.86508399,0.00019173,2]
[375838038,1753755587526,-500.0,0.00019173,2]
[375838039,1753755587558,-500.0,0.00019173,2]
[375838040,1753755587583,-300.0,0.00019177,2]
[375838041,1753755587819,-300.0,0.00019177,2]
[375838042,1753755587845,-300.0,0.00019177,2]
[375838043,1753755587870,-1200.0,0.00019177,2]
[375838044,1753755587894,-510.60650345,0.00019177,2]
[375838045,1753755587919,-298.16074817,0.00019177,2]
[375838046,1753755587942,-254.24170413,0.00019177,2]
[375838047,1753755587965,-460.0,0.00019178,2]
[375838048,1753755587986,-460.0,0.00019178,2]
[375838049,1753755588007,-460.0,0.00019178,2]
[375838050,1753755588028,-460.0,0.00019178,2]
[375838051,1753755588053,-460.0,0.00019178,2]
[375838052,1753755588077,-241.34167746,0.00019178,2]
[375838053,1753755588100,-460.0,0.00019178,2]
[375838054,1753755588124,-460.0,0.00019178,2]
[375838055,1753755588147,-315.9733973,0.00019178,2]
[375838056,1753755588170,-374.79646658,0.00019178,2]
[375838057,1753755588191,-460.0,0.00019178,2]
[375838058,1753755588213,-460.0,0.00019178,2]
[375838059,1753755588235,-460.0,0.00019178,2]
[375838060,1753755588258,-460.0,0.00019178,2]
[375838061,1753755588281,-460.0,0.00019178,2]
[375838062,1753755588307,-461.6481193,0.00019178,2]
[375838063,1753755588329,-460.0,0.00019178,2]
[375838064,1753755588351,-460.0,0.00019178,2]
[375838065,1753755588374,-2771.96,0.00019178,2]
[375838066,1753755588395,-460.0,0.00019178,2]
[375838067,1753755588418,-460.0,0.00019178,2]
[375838068,1753755588440,-460.0,0.00019178,2]
[375838069,1753755588462,-460.0,0.00019178,2]
[375838070,1753755588484,-460.0,0.00019178,2]
[375838071,1753755588506,-522.37952302,0.00019178,2]
[375838072,1753755588531,-460.0,0.00019178,2]
[375838073,1753755588563,-460.0,0.00019178,2]
[375838074,1753755588592,-469.98165685,0.00019178,2]
[375838075,1753755588615,-498.53,0.00019178,2]
[375838076,1753755588637,-460.0,0.00019178,2]
[375838077,1753755588660,-460.0,0.00019178,2]
[375838078,1753755588682,-460.0,0.00019178,2]
[375838079,1753755588710,-460.0,0.00019178,2]
[375838080,1753755588732,-460.0,0.00019178,2]
[375838081,1753755588754,-460.0,0.00019178,2]
[375838082,1753755588777,-460.0,0.00019178,2]
[375838083,1753755588800,-460.0,0.00019178,2]
[375838084,1753755588839,-460.0,0.00019178,2]
[375838085,1753755588866,-460.0,0.00019178,2]
[375838086,1753755588890,-460.0,0.00019178,2]
[375838087,1753755588914,-460.0,0.00019178,2]
[375838088,1753755588937,-460.0,0.00019178,2]
[375838089,1753755588960,-460.0,0.00019178,2]
[375838090,1753755588983,-460.0,0.00019178,2]
[375838091,1753755589008,-460.0,0.00019178,2]
[375838092,1753755589031,-460.0,0.00019178,2]
[375838093,1753755589055,-460.0,0.00019178,2]
[375838094,1753755589078,-460.0,0.00019178,2]
[375838095,1753755589102,-460.0,0.00019178,2]
[375838096,1753755589123,-461.12977026,0.00019178,2]
[375838097,1753755589146,-460.0,0.00019178,2]
[375838098,1753755589169,-460.0,0.00019178,2]
[375838099,1753755589196,-460.0,0.00019178,2]
[375838100,1753755589221,-460.0,0.00019178,2]
[375838101,1753755589244,-460.0,0.00019178,2]
[375838102,1753755589267,-460.0,0.00019178,2]
[375838103,1753755589290,-509.56939586,0.00019178,2]
[375838104,1753755589317,-460.0,0.00019178,2]
[375838105,1753755589342,-460.0,0.00019178,2]
[375838106,1753755589367,-460.0,0.00019178,2]
[375838107,1753755589390,-460.0,0.00019178,2]
[375838108,1753755589414,-460.0,0.00019178,2]
[375838109,1753755589439,-460.0,0.00019178,2]
[375838110,1753755589461,-460.0,0.00019178,2]
[375838111,1753755589484,-475.54,0.00019178,2]
[375838112,1753755589507,-460.0,0.00019178,2]
[375838113,1753755589530,-460.0,0.00019178,2]
[375838114,1753755589559,-1000.0,0.00019178,2]
[375838115,1753755589581,-460.0,0.00019178,2]
[375838116,1753755589604,-460.0,0.00019178,2]
[375838117,1753755589625,-460.0,0.00019178,2]
[375838118,1753755589647,-460.0,0.00019178,2]
[375838119,1753755589670,-460.0,0.00019178,2]
[375838120,1753755589692,-460.0,0.00019178,2]
[375838121,1753755589714,-460.0,0.00019178,2]
[375838122,1753755589735,-460.0,0.00019178,2]
[375838123,1753755589758,-460.0,0.00019178,2]
[375838124,1753755589780,-460.0,0.00019178,2]
[375838125,1753755589810,-460.0,0.00019178,2]
[375838126,1753755589844,-460.0,0.00019178,2]
[375838127,1753755589867,-460.0,0.00019178,2]
[375838128,1753755589889,-460.0,0.00019178,2]
[375838129,1753755589912,-460.0,0.00019178,2]
[375838130,1753755589934,-460.0,0.00019178,2]
[375838131,1753755589956,-460.0,0.00019178,2]
[375838132,1753755589978,-460.0,0.00019178,2]